[Event "Titled Tuesday Blitz March 07 Early 2023"]
[White "Mahdavi, Reza"]
[Black "Sokac, Marko"]
[WhiteFideId "12595926"]
[BlackFideId "14531356"]
[WhiteElo "2208"]
[BlackElo "2355"]
[Result "1-0"]
[Round "07"]
[TimeControl "180+2"]
[Date "2023.03.07"]
[WhiteClock "0:01:42"]
[BlackClock "0:00:01"]

1. Nf3 {[%clk 0:03:00]}  e6 {[%clk 0:03:00]} 2. g3 {[%clk 0:02:53]}  g5 {[%clk 0:02:59]} 3. d4 {[%clk 0:02:46]}  g4 {[%clk 0:02:59]} 4. Ne5 {[%clk 0:02:46]}  h5 {[%clk 0:02:59]} 5. c4 {[%clk 0:02:46]}  Bg7 {[%clk 0:02:59]} 6. Nc3 {[%clk 0:02:46]}  d6 {[%clk 0:02:59]} 7. Nd3 {[%clk 0:02:46]}  Bxd4 {[%clk 0:02:59]} 8. h3 {[%clk 0:02:45]}  c5 {[%clk 0:02:54]} 9. hxg4 {[%clk 0:02:44]}  hxg4 {[%clk 0:02:55]} 10. Rxh8 {[%clk 0:02:44]}  Bxh8 {[%clk 0:02:55]} 11. Ne4 {[%clk 0:02:45]}  f5 {[%clk 0:02:49]} 12. Nc3 {[%clk 0:02:42]}  Nc6 {[%clk 0:02:47]} 13. Bg2 {[%clk 0:02:42]}  a6 {[%clk 0:02:23]} 14. Be3 {[%clk 0:02:30]}  Bd7 {[%clk 0:02:19]} 15. Qd2 {[%clk 0:02:27]}  Qe7 {[%clk 0:02:15]} 16. O-O-O {[%clk 0:02:26]}  O-O-O {[%clk 0:02:13]} 17. Nf4 {[%clk 0:02:22]}  Be5 {[%clk 0:01:30]} 18. Ng6 {[%clk 0:02:18]}  Qf7 {[%clk 0:01:07]} 19. Nxe5 {[%clk 0:02:17]}  dxe5 {[%clk 0:00:36]} 20. Bxc5 {[%clk 0:02:17]}  Be8 {[%clk 0:00:30]} 21. Bd6 {[%clk 0:02:17]}  e4 {[%clk 0:00:30]} 22. Na4 {[%clk 0:02:17]}  b5 {[%clk 0:00:27]} 23. cxb5 {[%clk 0:02:16]}  axb5 {[%clk 0:00:28]} 24. Nc5 {[%clk 0:02:17]}  e5 {[%clk 0:00:24]} 25. Kb1 {[%clk 0:02:14]}  Nf6 {[%clk 0:00:22]} 26. Nb3 {[%clk 0:02:05]}  Qa7 {[%clk 0:00:16]} 27. e3 {[%clk 0:01:59]}  Bf7 {[%clk 0:00:16]} 28. Bf1 {[%clk 0:01:58]}  Bxb3 {[%clk 0:00:16]} 29. axb3 {[%clk 0:01:59]}  Qb6 {[%clk 0:00:14]} 30. Qc2 {[%clk 0:01:56]}  Kb7 {[%clk 0:00:15]} 31. b4 {[%clk 0:01:53]}  Qa6 {[%clk 0:00:06]} 32. Bc5 {[%clk 0:01:47]}  Rxd1+ {[%clk 0:00:05]} 33. Qxd1 {[%clk 0:01:48]}  Qa4 {[%clk 0:00:05]} 34. Qd6 {[%clk 0:01:46]}  Qb3 {[%clk 0:00:05]} 35. Bxb5 {[%clk 0:01:44]}  Nd4 {[%clk 0:00:03]} 36. Ba6+ {[%clk 0:01:42]}  Ka8 {[%clk 0:00:01]} 37. Qd8# {[%clk 0:01:42]} 1-0


[Site "https://www.chess.com"]

[Event "Titled Tuesday Blitz March 07 Early 2023"]
[White "Santos Flores, Alberto"]
[Black "Cherniaiev, Tykhon"]
[WhiteFideId "3601234"]
[BlackFideId "14182360"]
[WhiteElo "2235"]
[BlackElo "2450"]
[Result "0-1"]
[Round "07"]
[TimeControl "180+2"]
[Date "2023.03.07"]
[WhiteClock "0:00:22"]
[BlackClock "0:00:47"]

1. e4 {[%clk 0:03:00]}  e5 {[%clk 0:02:57]} 2. Nf3 {[%clk 0:03:00]}  Nc6 {[%clk 0:02:56]} 3. Bc4 {[%clk 0:02:59]}  Nf6 {[%clk 0:02:55]} 4. d3 {[%clk 0:02:59]}  Bc5 {[%clk 0:02:55]} 5. c3 {[%clk 0:02:59]}  O-O {[%clk 0:02:56]} 6. O-O {[%clk 0:02:59]}  d5 {[%clk 0:02:56]} 7. exd5 {[%clk 0:02:59]}  Nxd5 {[%clk 0:02:57]} 8. Re1 {[%clk 0:02:58]}  Bg4 {[%clk 0:02:52]} 9. Bb3 {[%clk 0:02:55]}  Re8 {[%clk 0:02:34]} 10. d4 {[%clk 0:02:44]}  Bb6 {[%clk 0:02:22]} 11. dxe5 {[%clk 0:02:44]}  Bxf3 {[%clk 0:02:14]} 12. Qxf3 {[%clk 0:02:43]}  Nxe5 {[%clk 0:02:15]} 13. Qd1 {[%clk 0:01:58]}  Bxf2+ {[%clk 0:01:04]} 14. Kxf2 {[%clk 0:01:55]}  Qh4+ {[%clk 0:01:04]} 15. Kf1 {[%clk 0:01:16]}  Ng4 {[%clk 0:00:50]} 16. Qd2 {[%clk 0:00:22]}  Nxh2+ {[%clk 0:00:47]} 0-1


[Site "https://www.chess.com"]

[Event "Titled Tuesday Blitz March 07 Early 2023"]
[White "Nazari, Arad"]
[Black "Leenhouts, Koen"]
[WhiteFideId "12577324"]
[BlackFideId "1008439"]
[WhiteElo "2313"]
[BlackElo "2409"]
[Result "1-0"]
[Round "07"]
[TimeControl "180+2"]
[Date "2023.03.07"]
[WhiteClock "0:00:06"]
[BlackClock "0:00:04"]

1. e4 {[%clk 0:03:00]}  e5 {[%clk 0:03:00]} 2. f4 {[%clk 0:02:57]}  exf4 {[%clk 0:02:53]} 3. Nf3 {[%clk 0:02:58]}  d5 {[%clk 0:02:51]} 4. exd5 {[%clk 0:02:58]}  Nf6 {[%clk 0:02:50]} 5. Bb5+ {[%clk 0:02:57]}  c6 {[%clk 0:02:48]} 6. dxc6 {[%clk 0:02:57]}  bxc6 {[%clk 0:02:49]} 7. Bc4 {[%clk 0:02:55]}  Bd6 {[%clk 0:02:43]} 8. Qe2+ {[%clk 0:02:45]}  Qe7 {[%clk 0:02:31]} 9. Qxe7+ {[%clk 0:02:44]}  Kxe7 {[%clk 0:02:32]} 10. Nc3 {[%clk 0:02:36]}  Be6 {[%clk 0:02:30]} 11. Bxe6 {[%clk 0:02:30]}  fxe6 {[%clk 0:02:30]} 12. O-O {[%clk 0:02:27]}  Nbd7 {[%clk 0:02:14]} 13. b3 {[%clk 0:02:26]}  h6 {[%clk 0:02:07]} 14. Bb2 {[%clk 0:02:26]}  g5 {[%clk 0:02:06]} 15. Rae1 {[%clk 0:02:22]}  Kf7 {[%clk 0:01:53]} 16. Ne4 {[%clk 0:02:20]}  Nxe4 {[%clk 0:01:47]} 17. Bxh8 {[%clk 0:02:16]}  Nxd2 {[%clk 0:01:44]} 18. Nxd2 {[%clk 0:02:12]}  Rxh8 {[%clk 0:01:44]} 19. Ne4 {[%clk 0:02:10]}  Bc5+ {[%clk 0:01:34]} 20. Nxc5 {[%clk 0:02:09]}  Nxc5 {[%clk 0:01:35]} 21. Re5 {[%clk 0:02:08]}  Nd7 {[%clk 0:01:30]} 22. Ra5 {[%clk 0:02:07]}  Ra8 {[%clk 0:01:26]} 23. Rd1 {[%clk 0:01:58]}  Ke7 {[%clk 0:01:26]} 24. Kf2 {[%clk 0:01:57]}  Nf6 {[%clk 0:01:23]} 25. Ra6 {[%clk 0:01:54]}  Ng4+ {[%clk 0:01:05]} 26. Ke2 {[%clk 0:01:54]}  Ne3 {[%clk 0:01:04]} 27. Rd3 {[%clk 0:01:40]}  Nxg2 {[%clk 0:00:57]} 28. Rxc6 {[%clk 0:01:39]}  g4 {[%clk 0:00:55]} 29. Kf2 {[%clk 0:00:59]}  f3 {[%clk 0:00:54]} 30. Rd4 {[%clk 0:00:46]}  h5 {[%clk 0:00:52]} 31. Re4 {[%clk 0:00:46]}  Rd8 {[%clk 0:00:42]} 32. Rexe6+ {[%clk 0:00:46]}  Kf7 {[%clk 0:00:43]} 33. Rcd6 {[%clk 0:00:43]}  Rc8 {[%clk 0:00:39]} 34. c4 {[%clk 0:00:43]}  Nf4 {[%clk 0:00:37]} 35. Re5 {[%clk 0:00:24]}  h4 {[%clk 0:00:26]} 36. Rd4 {[%clk 0:00:17]}  Nh3+ {[%clk 0:00:24]} 37. Kf1 {[%clk 0:00:17]}  Kf6 {[%clk 0:00:21]} 38. Rh5 {[%clk 0:00:15]}  g3 {[%clk 0:00:19]} 39. hxg3 {[%clk 0:00:14]}  Re8 {[%clk 0:00:11]} 40. Rdxh4 {[%clk 0:00:09]}  Ng5 {[%clk 0:00:09]} 41. Rf4+ {[%clk 0:00:09]}  Kg6 {[%clk 0:00:09]} 42. Rh2 {[%clk 0:00:09]}  Rd8 {[%clk 0:00:08]} 43. Rc2 {[%clk 0:00:05]}  Rd1+ {[%clk 0:00:07]} 44. Kf2 {[%clk 0:00:06]}  Rh1 {[%clk 0:00:04]} 45. Ke3 {[%clk 0:00:06]}  Re1+ {[%clk 0:00:04]} 46. Kd3 {[%clk 0:00:06]}  Rd1+ {[%clk 0:00:04]} 47. Kc3 {[%clk 0:00:06]}  Re1 {[%clk 0:00:04]} 48. c5 {[%clk 0:00:06]}  Ne4+ {[%clk 0:00:04]} 49. Kb4 {[%clk 0:00:06]} 1-0


[Site "https://www.chess.com"]

[Event "Titled Tuesday Blitz March 07 Early 2023"]
[White "Fernandez Guillen, Ernesto J."]
[Black "Ronka, Erik"]
[WhiteFideId "3512428"]
[BlackFideId "505080"]
[WhiteElo "2423"]
[BlackElo "2264"]
[Result "1-0"]
[Round "07"]
[TimeControl "180+2"]
[Date "2023.03.07"]
[WhiteClock "0:00:18"]
[BlackClock "0:00:02"]

1. e4 {[%clk 0:03:00]}  c5 {[%clk 0:02:59]} 2. Nf3 {[%clk 0:02:53]}  d6 {[%clk 0:02:59]} 3. d4 {[%clk 0:02:53]}  cxd4 {[%clk 0:02:59]} 4. Nxd4 {[%clk 0:02:54]}  Nf6 {[%clk 0:02:59]} 5. Nc3 {[%clk 0:02:45]}  g6 {[%clk 0:02:58]} 6. f3 {[%clk 0:02:40]}  Bg7 {[%clk 0:02:58]} 7. Bc4 {[%clk 0:02:41]}  a6 {[%clk 0:02:55]} 8. Be3 {[%clk 0:02:41]}  h5 {[%clk 0:02:51]} 9. Qd2 {[%clk 0:02:41]}  Nbd7 {[%clk 0:02:49]} 10. O-O-O {[%clk 0:02:40]}  b5 {[%clk 0:02:47]} 11. Bb3 {[%clk 0:02:41]}  Bb7 {[%clk 0:02:40]} 12. Kb1 {[%clk 0:02:40]}  Ne5 {[%clk 0:02:35]} 13. f4 {[%clk 0:02:39]}  Neg4 {[%clk 0:02:26]} 14. e5 {[%clk 0:02:38]}  dxe5 {[%clk 0:02:18]} 15. fxe5 {[%clk 0:02:35]}  Nxe5 {[%clk 0:02:13]} 16. Qe2 {[%clk 0:02:26]}  Qc8 {[%clk 0:01:48]} 17. Bf4 {[%clk 0:02:10]}  Nc4 {[%clk 0:01:42]} 18. Ndxb5 {[%clk 0:02:05]}  axb5 {[%clk 0:01:38]} 19. Nxb5 {[%clk 0:02:05]}  O-O {[%clk 0:01:26]} 20. Qxc4 {[%clk 0:02:06]}  Qf5 {[%clk 0:01:22]} 21. Rhf1 {[%clk 0:02:05]}  Bxg2 {[%clk 0:00:59]} 22. Rf2 {[%clk 0:01:55]}  Rac8 {[%clk 0:00:54]} 23. Bg3 {[%clk 0:01:42]}  Qg5 {[%clk 0:00:11]} 24. Bh4 {[%clk 0:01:12]}  Rxc4 {[%clk 0:00:08]} 25. Bxg5 {[%clk 0:01:12]}  Rc5 {[%clk 0:00:08]} 26. Rxg2 {[%clk 0:01:12]}  Rxb5 {[%clk 0:00:08]} 27. a4 {[%clk 0:01:11]}  Rb7 {[%clk 0:00:07]} 28. Be3 {[%clk 0:01:07]}  Ne4 {[%clk 0:00:07]} 29. a5 {[%clk 0:01:06]}  Ra8 {[%clk 0:00:05]} 30. Bb6 {[%clk 0:01:05]}  Nd6 {[%clk 0:00:02]} 31. Rxg6 {[%clk 0:01:03]}  Kh7 {[%clk 0:00:02]} 32. Rg5 {[%clk 0:00:58]}  Nc8 {[%clk 0:00:03]} 33. Rxh5+ {[%clk 0:00:47]}  Kg6 {[%clk 0:00:03]} 34. Rb5 {[%clk 0:00:47]}  Nxb6 {[%clk 0:00:03]} 35. Rxb6+ {[%clk 0:00:43]}  Rxb6 {[%clk 0:00:04]} 36. axb6 {[%clk 0:00:44]}  Rb8 {[%clk 0:00:04]} 37. Rg1+ {[%clk 0:00:42]}  Kh7 {[%clk 0:00:04]} 38. Bxf7 {[%clk 0:00:41]}  Rxb6 {[%clk 0:00:05]} 39. Bb3 {[%clk 0:00:42]}  e5 {[%clk 0:00:05]} 40. Rg4 {[%clk 0:00:41]}  Bf6 {[%clk 0:00:04]} 41. Bd5 {[%clk 0:00:39]}  e4 {[%clk 0:00:03]} 42. Bxe4+ {[%clk 0:00:34]}  Kh6 {[%clk 0:00:03]} 43. b3 {[%clk 0:00:34]}  Ra6 {[%clk 0:00:03]} 44. Kc1 {[%clk 0:00:32]}  Bc3 {[%clk 0:00:03]} 45. Kd1 {[%clk 0:00:32]}  Re6 {[%clk 0:00:04]} 46. Ke2 {[%clk 0:00:31]}  Kh5 {[%clk 0:00:04]} 47. h3 {[%clk 0:00:30]}  Rd6 {[%clk 0:00:03]} 48. Bd3 {[%clk 0:00:29]}  Rf6 {[%clk 0:00:03]} 49. Ke3 {[%clk 0:00:28]}  Bb2 {[%clk 0:00:02]} 50. b4 {[%clk 0:00:25]}  Bc3 {[%clk 0:00:01]} 51. b5 {[%clk 0:00:25]}  Re6+ {[%clk 0:00:01]} 52. Be4 {[%clk 0:00:21]}  Rd6 {[%clk 0:00:02]} 53. Rg8 {[%clk 0:00:18]}  Ba5 {[%clk 0:00:03]} 54. c4 {[%clk 0:00:18]}  Bb6+ {[%clk 0:00:03]} 55. Kf4 {[%clk 0:00:18]}  Kh4 {[%clk 0:00:02]} 56. Rh8+ {[%clk 0:00:18]} 1-0


[Site "https://www.chess.com"]

[Event "Titled Tuesday Blitz March 07 Early 2023"]
[White "Bolourchifard, Farzad"]
[Black "Buksa, Nataliya"]
[WhiteFideId "12510084"]
[BlackFideId "14123622"]
[WhiteElo "2317"]
[BlackElo "2316"]
[Result "1/2-1/2"]
[Round "07"]
[TimeControl "180+2"]
[Date "2023.03.07"]
[WhiteClock "0:00:07"]
[BlackClock "0:00:12"]

1. e4 {[%clk 0:03:00]}  c5 {[%clk 0:02:59]} 2. Nc3 {[%clk 0:02:59]}  Nc6 {[%clk 0:02:59]} 3. g3 {[%clk 0:02:59]}  g6 {[%clk 0:02:59]} 4. Bg2 {[%clk 0:02:59]}  Bg7 {[%clk 0:02:59]} 5. d3 {[%clk 0:02:59]}  d6 {[%clk 0:03:00]} 6. Be3 {[%clk 0:03:00]}  e5 {[%clk 0:02:58]} 7. Nge2 {[%clk 0:03:00]}  Nge7 {[%clk 0:02:58]} 8. Qd2 {[%clk 0:03:00]}  h5 {[%clk 0:02:51]} 9. f4 {[%clk 0:02:56]}  h4 {[%clk 0:02:50]} 10. O-O-O {[%clk 0:02:55]}  Rb8 {[%clk 0:02:48]} 11. fxe5 {[%clk 0:02:53]}  Bxe5 {[%clk 0:02:46]} 12. gxh4 {[%clk 0:02:52]}  Bg4 {[%clk 0:02:44]} 13. h3 {[%clk 0:02:49]}  Bxe2 {[%clk 0:02:37]} 14. Nxe2 {[%clk 0:02:49]}  Rxh4 {[%clk 0:02:37]} 15. Bg5 {[%clk 0:02:48]}  Rh7 {[%clk 0:02:37]} 16. Rdf1 {[%clk 0:02:44]}  Qb6 {[%clk 0:02:33]} 17. c3 {[%clk 0:02:34]}  Qa6 {[%clk 0:02:33]} 18. Kb1 {[%clk 0:02:33]}  Qa5 {[%clk 0:02:21]} 19. Nf4 {[%clk 0:02:28]}  b5 {[%clk 0:02:16]} 20. Nd5 {[%clk 0:02:27]}  b4 {[%clk 0:02:16]} 21. c4 {[%clk 0:02:07]}  Nxd5 {[%clk 0:02:10]} 22. exd5 {[%clk 0:02:07]}  Nd4 {[%clk 0:02:10]} 23. Bf6 {[%clk 0:02:03]}  Bxf6 {[%clk 0:01:59]} 24. Rxf6 {[%clk 0:02:04]}  Qc7 {[%clk 0:01:53]} 25. h4 {[%clk 0:01:59]}  Kf8 {[%clk 0:01:41]} 26. h5 {[%clk 0:01:57]}  Qe7 {[%clk 0:01:34]} 27. Qf4 {[%clk 0:01:45]}  Re8 {[%clk 0:01:18]} 28. Be4 {[%clk 0:01:39]}  Kg7 {[%clk 0:01:15]} 29. Rf1 {[%clk 0:01:33]}  Kh8 {[%clk 0:01:07]} 30. hxg6 {[%clk 0:01:27]}  fxg6 {[%clk 0:01:05]} 31. Rxg6 {[%clk 0:01:11]}  Ne2 {[%clk 0:00:56]} 32. Qg4 {[%clk 0:00:54]}  Nd4 {[%clk 0:00:49]} 33. Rg1 {[%clk 0:00:53]}  Qf7 {[%clk 0:00:41]} 34. Rg5 {[%clk 0:00:42]}  Rh2 {[%clk 0:00:33]} 35. Rg7 {[%clk 0:00:40]}  Rxb2+ {[%clk 0:00:27]} 36. Kc1 {[%clk 0:00:13]}  Rc2+ {[%clk 0:00:27]} 37. Kd1 {[%clk 0:00:13]}  Rd2+ {[%clk 0:00:13]} 38. Kc1 {[%clk 0:00:10]}  Rc2+ {[%clk 0:00:13]} 39. Kb1 {[%clk 0:00:09]}  Rb2+ {[%clk 0:00:13]} 40. Ka1 {[%clk 0:00:08]}  Rxa2+ {[%clk 0:00:13]} 41. Kb1 {[%clk 0:00:08]}  Rb2+ {[%clk 0:00:12]} 42. Kc1 {[%clk 0:00:08]}  Rc2+ {[%clk 0:00:12]} 43. Kb1 {[%clk 0:00:08]}  Rb2+ {[%clk 0:00:12]} 44. Ka1 {[%clk 0:00:07]}  Ra2+ {[%clk 0:00:12]} 45. Kb1 {[%clk 0:00:07]}  Rb2+ {[%clk 0:00:12]} 1/2-1/2


[Site "https://www.chess.com"]

[Event "Titled Tuesday Blitz March 07 Early 2023"]
[White "Goltsev, Dmitry"]
[Black "Yosha_Iglesias"]
[WhiteFideId "24176710"]
[WhiteElo "2336"]
[BlackElo "2489"]
[Result "0-1"]
[Round "07"]
[TimeControl "180+2"]
[Date "2023.03.07"]
[WhiteClock "0:01:08"]
[BlackClock "0:00:21"]

1. e4 {[%clk 0:02:59]}  c5 {[%clk 0:02:55]} 2. Nf3 {[%clk 0:03:00]}  d6 {[%clk 0:02:55]} 3. d4 {[%clk 0:03:00]}  cxd4 {[%clk 0:02:56]} 4. Nxd4 {[%clk 0:03:01]}  Nf6 {[%clk 0:02:56]} 5. Nc3 {[%clk 0:03:01]}  g6 {[%clk 0:02:56]} 6. Be2 {[%clk 0:03:02]}  Nc6 {[%clk 0:02:56]} 7. O-O {[%clk 0:03:02]}  Bg7 {[%clk 0:02:56]} 8. Be3 {[%clk 0:03:03]}  O-O {[%clk 0:02:56]} 9. f4 {[%clk 0:03:03]}  Qb6 {[%clk 0:02:51]} 10. Bf3 {[%clk 0:03:01]}  Ng4 {[%clk 0:02:02]} 11. Bxg4 {[%clk 0:02:50]}  Bxd4 {[%clk 0:02:01]} 12. Bxd4 {[%clk 0:02:48]}  Qxd4+ {[%clk 0:02:00]} 13. Qxd4 {[%clk 0:02:44]}  Nxd4 {[%clk 0:02:01]} 14. Bxc8 {[%clk 0:02:43]}  Rfxc8 {[%clk 0:02:00]} 15. Rf2 {[%clk 0:02:44]}  Ne6 {[%clk 0:01:49]} 16. Nd5 {[%clk 0:02:41]}  Kf8 {[%clk 0:01:48]} 17. c3 {[%clk 0:02:39]}  Nc7 {[%clk 0:01:43]} 18. Ne3 {[%clk 0:02:38]}  e6 {[%clk 0:01:42]} 19. Rd1 {[%clk 0:02:38]}  Ke7 {[%clk 0:01:42]} 20. f5 {[%clk 0:02:37]}  gxf5 {[%clk 0:01:41]} 21. exf5 {[%clk 0:02:36]}  Rg8 {[%clk 0:01:16]} 22. Nc4 {[%clk 0:02:26]}  d5 {[%clk 0:01:11]} 23. Na5 {[%clk 0:02:19]}  Rab8 {[%clk 0:01:07]} 24. fxe6 {[%clk 0:02:19]}  fxe6 {[%clk 0:01:06]} 25. Rdf1 {[%clk 0:02:19]}  Rg7 {[%clk 0:00:59]} 26. Re2 {[%clk 0:02:19]}  Kd6 {[%clk 0:00:54]} 27. Rf6 {[%clk 0:02:15]}  b6 {[%clk 0:00:50]} 28. Nb3 {[%clk 0:02:15]}  Rbg8 {[%clk 0:00:47]} 29. Nd4 {[%clk 0:02:13]}  Rg6 {[%clk 0:00:47]} 30. Rf7 {[%clk 0:02:09]}  R8g7 {[%clk 0:00:45]} 31. Rf8 {[%clk 0:01:58]}  Rg8 {[%clk 0:00:43]} 32. Rf1 {[%clk 0:01:52]}  a6 {[%clk 0:00:42]} 33. g3 {[%clk 0:01:49]}  Nb5 {[%clk 0:00:41]} 34. Nf3 {[%clk 0:01:43]}  Rf6 {[%clk 0:00:37]} 35. Ne5 {[%clk 0:01:35]}  Rxf1+ {[%clk 0:00:35]} 36. Kxf1 {[%clk 0:01:35]}  Rf8+ {[%clk 0:00:35]} 37. Kg2 {[%clk 0:01:35]}  Rf5 {[%clk 0:00:35]} 38. Nd3 {[%clk 0:01:34]}  e5 {[%clk 0:00:26]} 39. g4 {[%clk 0:01:30]}  Rg5 {[%clk 0:00:26]} 40. h3 {[%clk 0:01:28]}  e4 {[%clk 0:00:27]} 41. Nf4 {[%clk 0:01:25]}  Re5 {[%clk 0:00:23]} 42. Kg3 {[%clk 0:01:22]}  d4 {[%clk 0:00:20]} 43. cxd4 {[%clk 0:01:20]}  Nxd4 {[%clk 0:00:21]} 44. Rd2 {[%clk 0:01:19]}  Kc5 {[%clk 0:00:21]} 45. Rd1 {[%clk 0:01:16]}  e3 {[%clk 0:00:20]} 46. Nd3+ {[%clk 0:01:16]}  Kd5 {[%clk 0:00:19]} 47. Nxe5 {[%clk 0:01:17]}  Kxe5 {[%clk 0:00:20]} 48. Rc1 {[%clk 0:01:07]}  Ne2+ {[%clk 0:00:19]} 49. Kf3 {[%clk 0:01:02]}  Nxc1 {[%clk 0:00:20]} 50. Kxe3 {[%clk 0:01:03]}  Nxa2 {[%clk 0:00:20]} 51. h4 {[%clk 0:01:02]}  Nb4 {[%clk 0:00:20]} 52. Kd2 {[%clk 0:01:03]}  Kf4 {[%clk 0:00:19]} 53. Kc3 {[%clk 0:01:03]}  Nc6 {[%clk 0:00:19]} 54. g5 {[%clk 0:01:03]}  Kg4 {[%clk 0:00:18]} 55. Kc4 {[%clk 0:01:01]}  Kxh4 {[%clk 0:00:19]} 56. Kd5 {[%clk 0:01:02]}  Kxg5 {[%clk 0:00:18]} 57. Kxc6 {[%clk 0:01:02]}  h5 {[%clk 0:00:18]} 58. Kxb6 {[%clk 0:01:02]}  h4 {[%clk 0:00:19]} 59. Kxa6 {[%clk 0:01:03]}  h3 {[%clk 0:00:20]} 60. b4 {[%clk 0:01:04]}  h2 {[%clk 0:00:21]} 61. b5 {[%clk 0:01:05]}  h1=Q {[%clk 0:00:22]} 62. Ka7 {[%clk 0:01:05]}  Kf6 {[%clk 0:00:20]} 63. b6 {[%clk 0:01:06]}  Qa1+ {[%clk 0:00:20]} 64. Kb8 {[%clk 0:01:06]}  Ke6 {[%clk 0:00:21]} 65. b7 {[%clk 0:01:07]}  Kd6 {[%clk 0:00:21]} 66. Kc8 {[%clk 0:01:08]}  Qh8# {[%clk 0:00:21]} 0-1


[Site "https://www.chess.com"]

[Event "Titled Tuesday Blitz March 07 Early 2023"]
[White "Kucuksari, Kaan"]
[Black "Rodriguez Fontecha, Marcos"]
[WhiteFideId "6380166"]
[BlackFideId "2256576"]
[WhiteElo "2364"]
[BlackElo "2263"]
[Result "0-1"]
[Round "07"]
[TimeControl "180+2"]
[Date "2023.03.07"]
[WhiteClock "0:00:18"]
[BlackClock "0:00:12"]

1. d4 {[%clk 0:03:00]}  f5 {[%clk 0:02:59]} 2. e4 {[%clk 0:02:59]}  fxe4 {[%clk 0:02:58]} 3. Nc3 {[%clk 0:03:00]}  Nf6 {[%clk 0:02:58]} 4. Bg5 {[%clk 0:02:59]}  g6 {[%clk 0:02:54]} 5. Bxf6 {[%clk 0:02:59]}  exf6 {[%clk 0:02:54]} 6. Nxe4 {[%clk 0:03:00]}  Bg7 {[%clk 0:02:54]} 7. Bd3 {[%clk 0:02:43]}  O-O {[%clk 0:02:54]} 8. Ne2 {[%clk 0:02:41]}  d5 {[%clk 0:02:32]} 9. N4g3 {[%clk 0:02:42]}  f5 {[%clk 0:02:27]} 10. O-O {[%clk 0:02:38]}  f4 {[%clk 0:02:24]} 11. Nh1 {[%clk 0:02:38]}  f3 {[%clk 0:02:09]} 12. Neg3 {[%clk 0:02:38]}  fxg2 {[%clk 0:02:05]} 13. Kxg2 {[%clk 0:02:38]}  Nc6 {[%clk 0:01:58]} 14. c3 {[%clk 0:02:37]}  Ne7 {[%clk 0:01:48]} 15. Kg1 {[%clk 0:02:31]}  h5 {[%clk 0:01:42]} 16. Re1 {[%clk 0:02:27]}  h4 {[%clk 0:01:41]} 17. Nf1 {[%clk 0:02:27]}  Nf5 {[%clk 0:01:39]} 18. Qg4 {[%clk 0:02:26]}  Nxd4 {[%clk 0:01:18]} 19. Qxd4 {[%clk 0:01:56]}  Bxd4 {[%clk 0:01:15]} 20. cxd4 {[%clk 0:01:57]}  Qg5+ {[%clk 0:01:15]} 21. Nhg3 {[%clk 0:01:55]}  Bh3 {[%clk 0:01:10]} 22. Re5 {[%clk 0:01:54]}  Qg4 {[%clk 0:01:03]} 23. Ne3 {[%clk 0:01:51]}  Qxd4 {[%clk 0:01:01]} 24. Rxd5 {[%clk 0:01:50]}  Qf4 {[%clk 0:00:54]} 25. Ne4 {[%clk 0:01:45]}  Rae8 {[%clk 0:00:51]} 26. Rd4 {[%clk 0:01:29]}  c5 {[%clk 0:00:33]} 27. Rc4 {[%clk 0:00:45]}  b5 {[%clk 0:00:33]} 28. Rxc5 {[%clk 0:00:35]}  Rxe4 {[%clk 0:00:31]} 29. Bxe4 {[%clk 0:00:36]}  Qxf2+ {[%clk 0:00:25]} 30. Kh1 {[%clk 0:00:36]}  Qxe3 {[%clk 0:00:25]} 31. Re5 {[%clk 0:00:35]}  Qf4 {[%clk 0:00:21]} 32. Bd5+ {[%clk 0:00:34]}  Kh8 {[%clk 0:00:20]} 33. Ree1 {[%clk 0:00:34]}  Bg4 {[%clk 0:00:18]} 34. Bg2 {[%clk 0:00:33]}  h3 {[%clk 0:00:17]} 35. Bf1 {[%clk 0:00:31]}  Bf3+ {[%clk 0:00:16]} 36. Kg1 {[%clk 0:00:32]}  Bg4 {[%clk 0:00:13]} 37. Re2 {[%clk 0:00:18]}  Bxe2 {[%clk 0:00:11]} 38. Bxe2 {[%clk 0:00:17]}  Qf2+ {[%clk 0:00:11]} 39. Kh1 {[%clk 0:00:18]}  Qg2# {[%clk 0:00:12]} 0-1


[Site "https://www.chess.com"]

[Event "Titled Tuesday Blitz March 07 Early 2023"]
[White "Fiedorek, Michal"]
[Black "Starozhilov, Leonid"]
[WhiteFideId "1199528"]
[BlackFideId "14106752"]
[WhiteElo "2135"]
[BlackElo "2402"]
[Result "1-0"]
[Round "07"]
[TimeControl "180+2"]
[Date "2023.03.07"]
[WhiteClock "0:00:33"]
[BlackClock "0:00:01"]

1. e4 {[%clk 0:03:00]}  g6 {[%clk 0:02:59]} 2. d4 {[%clk 0:03:00]}  Bg7 {[%clk 0:02:58]} 3. Nc3 {[%clk 0:03:00]}  d6 {[%clk 0:02:57]} 4. Be3 {[%clk 0:02:58]}  a6 {[%clk 0:02:57]} 5. h4 {[%clk 0:02:57]}  h5 {[%clk 0:02:57]} 6. Nh3 {[%clk 0:02:57]}  Bxh3 {[%clk 0:02:55]} 7. Rxh3 {[%clk 0:02:57]}  Nf6 {[%clk 0:02:55]} 8. f3 {[%clk 0:02:55]}  Nc6 {[%clk 0:02:52]} 9. Qd2 {[%clk 0:02:55]}  b5 {[%clk 0:02:44]} 10. a3 {[%clk 0:02:55]}  e5 {[%clk 0:02:41]} 11. d5 {[%clk 0:02:52]}  Nd4 {[%clk 0:02:42]} 12. Bxd4 {[%clk 0:02:49]}  exd4 {[%clk 0:02:42]} 13. Ne2 {[%clk 0:02:49]}  O-O {[%clk 0:02:41]} 14. Nxd4 {[%clk 0:02:49]}  Re8 {[%clk 0:02:19]} 15. O-O-O {[%clk 0:02:37]}  Qb8 {[%clk 0:02:08]} 16. Kb1 {[%clk 0:02:30]}  Qb6 {[%clk 0:02:04]} 17. Nc6 {[%clk 0:02:21]}  a5 {[%clk 0:01:52]} 18. Qd4 {[%clk 0:02:20]}  Qb7 {[%clk 0:01:38]} 19. Qd3 {[%clk 0:02:20]}  b4 {[%clk 0:01:35]} 20. a4 {[%clk 0:02:20]}  Nd7 {[%clk 0:01:32]} 21. Qb5 {[%clk 0:02:15]}  Qc8 {[%clk 0:01:27]} 22. Nxa5 {[%clk 0:02:12]}  Nc5 {[%clk 0:01:20]} 23. Qxb4 {[%clk 0:02:01]}  f5 {[%clk 0:01:03]} 24. Bb5 {[%clk 0:01:53]}  Rf8 {[%clk 0:00:50]} 25. Nc6 {[%clk 0:01:36]}  Kh7 {[%clk 0:00:38]} 26. e5 {[%clk 0:01:35]}  Qb7 {[%clk 0:00:28]} 27. e6 {[%clk 0:01:30]}  Qb6 {[%clk 0:00:24]} 28. Rhh1 {[%clk 0:01:24]}  Na6 {[%clk 0:00:10]} 29. Qc4 {[%clk 0:01:19]}  Nc5 {[%clk 0:00:09]} 30. c3 {[%clk 0:01:08]}  Rfe8 {[%clk 0:00:05]} 31. Rhe1 {[%clk 0:01:07]}  Bf6 {[%clk 0:00:04]} 32. g4 {[%clk 0:01:06]}  Bxh4 {[%clk 0:00:03]} 33. Rh1 {[%clk 0:01:05]}  Bf6 {[%clk 0:00:03]} 34. gxh5 {[%clk 0:01:05]}  g5 {[%clk 0:00:03]} 35. Kc2 {[%clk 0:00:55]}  Kh6 {[%clk 0:00:03]} 36. Ra1 {[%clk 0:00:46]}  Bg7 {[%clk 0:00:03]} 37. b4 {[%clk 0:00:46]}  Na6 {[%clk 0:00:02]} 38. Qd3 {[%clk 0:00:39]}  Rf8 {[%clk 0:00:01]} 39. e7 {[%clk 0:00:39]}  Rf7 {[%clk 0:00:01]} 40. a5 {[%clk 0:00:33]}  Qb7 {[%clk 0:00:01]} 41. Nd8 {[%clk 0:00:33]} 1-0


[Site "https://www.chess.com"]